[Event "Early-Titled-Tuesday-Blitz-June-18-2024"]
[Site "Chess.com"]
[Date "2024.06.18"]
[Round "5"]
[White "evgchess5"]
[Black "ArtemDyachuk"]
[Result "1-0"]
[WhiteElo "2923"]
[BlackElo "2634"]
[TimeControl "180+1"]
[EndTime "8:56:03 PDT"]
[Termination "evgchess5 won by resignation"]

1. e4 {[%clk 0:02:42.5]} 1... e5 {[%clk 0:02:59.2]} 2. Nf3 {[%clk 0:02:41.8]}
2... Nc6 {[%clk 0:02:59.4]} 3. Bc4 {[%clk 0:02:41.8]} 3... Bc5 {[%clk
0:02:58.4]} 4. c3 {[%clk 0:02:41.4]} 4... Nf6 {[%clk 0:02:57.4]} 5. d3 {[%clk
0:02:42]} 5... d6 {[%clk 0:02:57.2]} 6. O-O {[%clk 0:02:42.2]} 6... O-O {[%clk
0:02:57.6]} 7. Bb3 {[%clk 0:02:42.4]} 7... a6 {[%clk 0:02:55.8]} 8. h3 {[%clk
0:02:41.6]} 8... Ba7 {[%clk 0:02:56.1]} 9. Be3 {[%clk 0:02:39.4]} 9... Bxe3
{[%clk 0:02:47]} 10. fxe3 {[%clk 0:02:39.4]} 10... Be6 {[%clk 0:02:42.1]} 11.
Bc2 {[%clk 0:02:39.3]} 11... h6 {[%clk 0:02:39.3]} 12. Nbd2 {[%clk 0:02:38.1]}
12... Ne7 {[%clk 0:02:34.2]} 13. Nh4 {[%clk 0:02:37.8]} 13... c6 {[%clk
0:02:20.6]} 14. d4 {[%clk 0:02:24.7]} 14... c5 {[%clk 0:01:24.2]} 15. d5 {[%clk
0:02:09]} 15... Bd7 {[%clk 0:01:22.8]} 16. Rxf6 {[%clk 0:01:54.5]} 16... gxf6
{[%clk 0:01:22.3]} 17. Qh5 {[%clk 0:01:55]} 17... Kh7 {[%clk 0:01:10.6]} 18. Rf1
{[%clk 0:01:45]} 18... Rg8 {[%clk 0:00:27.6]} 19. Rxf6 {[%clk 0:01:34.9]} 19...
Ng6 {[%clk 0:00:01.1]} 1-0

[Event "Early-Titled-Tuesday-Blitz-June-18-2024"]
[Site "Chess.com"]
[Date "2024.06.18"]
[Round "5"]
[White "rockstar0902"]
[Black "Giantgoogachess"]
[Result "1-0"]
[WhiteElo "2617"]
[BlackElo "2433"]
[TimeControl "180+1"]
[EndTime "8:56:03 PDT"]
[Termination "rockstar0902 won by resignation"]

1. c4 {[%clk 0:03:00.9]} 1... Nf6 {[%clk 0:01:26.2]} 2. Nc3 {[%clk 0:02:55.6]}
2... g6 {[%clk 0:01:25.3]} 3. e4 {[%clk 0:02:53.5]} 3... d6 {[%clk 0:01:25.5]}
4. g3 {[%clk 0:02:54]} 4... Bg7 {[%clk 0:01:24.4]} 5. Bg2 {[%clk 0:02:54.5]}
5... O-O {[%clk 0:01:25]} 6. Nge2 {[%clk 0:02:55.1]} 6... e5 {[%clk 0:01:16.8]}
7. O-O {[%clk 0:02:54.4]} 7... Re8 {[%clk 0:01:09.2]} 8. d3 {[%clk 0:02:49.5]}
8... c5 {[%clk 0:01:06.1]} 9. h3 {[%clk 0:02:49]} 9... Nc6 {[%clk 0:01:06.3]}
10. f4 {[%clk 0:02:48.4]} 10... Nd7 {[%clk 0:01:03.5]} 11. f5 {[%clk 0:02:48.4]}
11... f6 {[%clk 0:01:02.5]} 12. g4 {[%clk 0:02:44.3]} 12... Nf8 {[%clk
0:01:02.2]} 13. Ng3 {[%clk 0:02:42.9]} 13... g5 {[%clk 0:01:01]} 14. h4 {[%clk
0:02:42.3]} 14... h6 {[%clk 0:01:00.9]} 15. Nh5 {[%clk 0:02:42.5]} 15... Kf7
{[%clk 0:01:01.2]} 16. Be3 {[%clk 0:02:40.7]} 16... a6 {[%clk 0:01:01.1]} 17. a3
{[%clk 0:02:38]} 17... Rb8 {[%clk 0:01:01.6]} 18. b4 {[%clk 0:02:33.6]} 18... b6
{[%clk 0:00:59.6]} 19. Rb1 {[%clk 0:02:31.6]} 19... Bd7 {[%clk 0:00:59.6]} 20.
Nd5 {[%clk 0:02:28.4]} 20... Ne7 {[%clk 0:00:53.9]} 21. Ndxf6 {[%clk 0:01:59.5]}
21... Bxf6 {[%clk 0:00:52.8]} 22. Nxf6 {[%clk 0:02:00.4]} 22... Kxf6 {[%clk
0:00:53.4]} 23. hxg5+ {[%clk 0:02:01.1]} 23... hxg5 {[%clk 0:00:54]} 24. Bxg5+
{[%clk 0:02:01.4]} 24... Kxg5 {[%clk 0:00:52.9]} 25. Qd2+ {[%clk 0:02:01.6]}
25... Kf6 {[%clk 0:00:53.6]} 26. Qh6+ {[%clk 0:01:58.1]} 26... Kf7 {[%clk
0:00:52.5]} 27. g5 {[%clk 0:01:54.4]} 27... Nxf5 {[%clk 0:00:04.5]} 28. exf5
{[%clk 0:01:52.5]} 28... Kg8 {[%clk 0:00:05.2]} 29. Bd5+ {[%clk 0:01:51.1]} 1-0

[Event "Early-Titled-Tuesday-Blitz-June-18-2024"]
[Site "Chess.com"]
[Date "2024.06.18"]
[Round "5"]
[White "DvaHrasta"]
[Black "Cmorales2001"]
[Result "1-0"]
[WhiteElo "2516"]
[BlackElo "2322"]
[TimeControl "180+1"]
[EndTime "8:56:09 PDT"]
[Termination "DvaHrasta won by resignation"]

1. c4 {[%clk 0:03:00.9]} 1... e6 {[%clk 0:02:58.4]} 2. g3 {[%clk 0:02:59.9]}
2... d5 {[%clk 0:02:58.6]} 3. d4 {[%clk 0:02:59.9]} 3... dxc4 {[%clk 0:02:57.7]}
4. Bg2 {[%clk 0:02:59.9]} 4... Nf6 {[%clk 0:02:56.7]} 5. Nf3 {[%clk 0:02:59.9]}
5... Bd7 {[%clk 0:02:53.8]} 6. O-O {[%clk 0:02:59.4]} 6... Bc6 {[%clk
0:02:54.3]} 7. Nbd2 {[%clk 0:02:55.3]} 7... Nbd7 {[%clk 0:02:44.5]} 8. Nxc4
{[%clk 0:02:53.1]} 8... Be7 {[%clk 0:02:44.8]} 9. Bf4 {[%clk 0:02:42.1]} 9...
O-O {[%clk 0:02:43.8]} 10. Rc1 {[%clk 0:02:42]} 10... Bd5 {[%clk 0:02:28.9]} 11.
Ne3 {[%clk 0:02:26.6]} 11... Bc6 {[%clk 0:02:26.1]} 12. Nc4 {[%clk 0:02:16.1]}
12... Nh5 {[%clk 0:02:18.6]} 13. Bd2 {[%clk 0:02:06.6]} 13... Bd5 {[%clk
0:02:16.8]} 14. Qc2 {[%clk 0:01:55.2]} 14... Nhf6 {[%clk 0:02:14.7]} 15. Rfe1
{[%clk 0:01:46.6]} 15... Be4 {[%clk 0:02:11.8]} 16. Qb3 {[%clk 0:01:43.5]} 16...
c5 {[%clk 0:02:10.8]} 17. Be3 {[%clk 0:01:27.5]} 17... Rc8 {[%clk 0:02:03.9]}
18. Red1 {[%clk 0:01:23.4]} 18... Bd5 {[%clk 0:01:56.2]} 19. Nfe5 {[%clk
0:01:19.7]} 19... cxd4 {[%clk 0:01:47]} 20. Bxd4 {[%clk 0:01:14.1]} 20... Nxe5
{[%clk 0:01:20.1]} 21. Bxd5 {[%clk 0:01:03]} 21... Qxd5 {[%clk 0:00:42.9]} 22.
Bxe5 {[%clk 0:00:58.8]} 22... Qxc4 {[%clk 0:00:42.4]} 23. Rxc4 {[%clk
0:00:55.5]} 1-0

[Event "Early-Titled-Tuesday-Blitz-June-18-2024"]
[Site "Chess.com"]
[Date "2024.06.18"]
[Round "5"]
[White "AmbartsumianTyhran2012"]
[Black "sammartin99"]
[Result "1-0"]
[WhiteElo "2519"]
[BlackElo "2337"]
[TimeControl "180+1"]
[EndTime "8:56:16 PDT"]
[Termination "AmbartsumianTyhran2012 won on time"]

1. e4 {[%clk 0:03:00.9]} 1... c5 {[%clk 0:02:29.9]} 2. Nf3 {[%clk 0:02:53.8]}
2... Nc6 {[%clk 0:02:29]} 3. d4 {[%clk 0:02:53]} 3... cxd4 {[%clk 0:02:28.3]} 4.
Nxd4 {[%clk 0:02:53.4]} 4... Nf6 {[%clk 0:02:27.5]} 5. Nc3 {[%clk 0:02:51.6]}
5... e5 {[%clk 0:02:27.1]} 6. Nde2 {[%clk 0:02:45.1]} 6... Bc5 {[%clk
0:02:13.2]} 7. h3 {[%clk 0:02:38.9]} 7... h6 {[%clk 0:02:10.9]} 8. g3 {[%clk
0:02:33.1]} 8... O-O {[%clk 0:02:05.5]} 9. Bg2 {[%clk 0:02:31.3]} 9... d6 {[%clk
0:01:33.1]} 10. O-O {[%clk 0:02:30.6]} 10... a6 {[%clk 0:01:30.4]} 11. Kh2
{[%clk 0:02:26.6]} 11... b5 {[%clk 0:01:26.8]} 12. f4 {[%clk 0:02:24.7]} 12...
Bb7 {[%clk 0:01:17.1]} 13. g4 {[%clk 0:02:19.1]} 13... exf4 {[%clk 0:01:08.9]}
14. Bxf4 {[%clk 0:02:20]} 14... Ne5 {[%clk 0:01:07.7]} 15. Ng3 {[%clk
0:02:17.9]} 15... Ng6 {[%clk 0:00:54.3]} 16. Bc1 {[%clk 0:02:15.6]} 16... Re8
{[%clk 0:00:46.3]} 17. Qd3 {[%clk 0:02:09.4]} 17... Bb4 {[%clk 0:00:24.4]} 18.
Nd5 {[%clk 0:02:05.5]} 18... Nxd5 {[%clk 0:00:21.3]} 19. exd5 {[%clk 0:02:06.4]}
19... Ne5 {[%clk 0:00:17.7]} 20. Qb3 {[%clk 0:02:02.3]} 20... Bc5 {[%clk
0:00:17.5]} 21. Nf5 {[%clk 0:02:02.6]} 21... Qb6 {[%clk 0:00:13.1]} 22. Qg3
{[%clk 0:01:56.3]} 22... f6 {[%clk 0:00:08.2]} 23. Bxh6 {[%clk 0:01:46.1]} 23...
gxh6 {[%clk 0:00:06.7]} 24. Nxh6+ {[%clk 0:01:47]} 24... Kg7 {[%clk 0:00:07.3]}
25. Nf5+ {[%clk 0:01:46.7]} 25... Kf7 {[%clk 0:00:04.7]} 26. g5 {[%clk
0:01:45.8]} 26... Rg8 {[%clk 0:00:04]} 27. Nh6+ {[%clk 0:01:45.6]} 27... Ke7
{[%clk 0:00:01]} 28. Nxg8+ {[%clk 0:01:42.9]} 28... Rxg8 {[%clk 0:00:01.9]} 29.
Rxf6 {[%clk 0:01:41.3]} 1-0

[Event "Early-Titled-Tuesday-Blitz-June-18-2024"]
[Site "Chess.com"]
[Date "2024.06.18"]
[Round "5"]
[White "KogotBobra17"]
[Black "scarabee43"]
[Result "0-1"]
[WhiteElo "2668"]
[BlackElo "2885"]
[TimeControl "180+1"]
[EndTime "8:56:22 PDT"]
[Termination "scarabee43 won by resignation"]

1. e4 {[%clk 0:03:00.9]} 1... d6 {[%clk 0:03:00]} 2. d4 {[%clk 0:03:00.9]} 2...
Nf6 {[%clk 0:03:00.4]} 3. Nc3 {[%clk 0:03:01.4]} 3... g6 {[%clk 0:03:00.9]} 4.
Nf3 {[%clk 0:03:01.9]} 4... Bg7 {[%clk 0:03:01.1]} 5. Be3 {[%clk 0:03:02.4]}
5... O-O {[%clk 0:03:00.6]} 6. Qd2 {[%clk 0:03:02.8]} 6... Nc6 {[%clk
0:02:55.9]} 7. Bh6 {[%clk 0:02:57.2]} 7... Bg4 {[%clk 0:02:53.4]} 8. Be2 {[%clk
0:02:34.6]} 8... Bxh6 {[%clk 0:02:51.2]} 9. Qxh6 {[%clk 0:02:30.4]} 9... Bxf3
{[%clk 0:02:51.8]} 10. Bxf3 {[%clk 0:02:31]} 10... Nxd4 {[%clk 0:02:52.3]} 11.
O-O-O {[%clk 0:02:31.9]} 11... e5 {[%clk 0:02:47.2]} 12. h4 {[%clk 0:02:32]}
12... Nxf3 {[%clk 0:02:41.9]} 13. gxf3 {[%clk 0:02:32.9]} 13... Nh5 {[%clk
0:02:42.2]} 14. Ne2 {[%clk 0:02:33.5]} 14... Qf6 {[%clk 0:02:41.1]} 15. Ng3
{[%clk 0:02:33.7]} 15... Qf4+ {[%clk 0:02:39.8]} 16. Qxf4 {[%clk 0:02:33.5]}
16... Nxf4 {[%clk 0:02:40.2]} 17. h5 {[%clk 0:02:34.4]} 17... Kg7 {[%clk
0:02:38.1]} 18. Rdg1 {[%clk 0:02:34.8]} 18... Kf6 {[%clk 0:02:33.6]} 19. Rh4
{[%clk 0:02:23.9]} 19... a5 {[%clk 0:02:14.9]} 20. Kd2 {[%clk 0:02:23.1]} 20...
a4 {[%clk 0:02:11.8]} 21. Ke3 {[%clk 0:02:21.1]} 21... a3 {[%clk 0:02:11.4]} 22.
b3 {[%clk 0:02:20.9]} 22... Ra6 {[%clk 0:02:07.1]} 23. Ne2 {[%clk 0:02:20.4]}
23... g5 {[%clk 0:02:01.1]} 24. Rhg4 {[%clk 0:02:16.3]} 24... Nxe2 {[%clk
0:01:55.4]} 25. Kxe2 {[%clk 0:02:16.4]} 25... h6 {[%clk 0:01:56]} 26. c4 {[%clk
0:02:12.6]} 26... Ke6 {[%clk 0:01:55.2]} 27. Rd1 {[%clk 0:02:12.3]} 27... f5
{[%clk 0:01:53.3]} 28. Rgg1 {[%clk 0:02:12.3]} 28... Raa8 {[%clk 0:01:49.5]} 29.
Rc1 {[%clk 0:01:56.1]} 29... b6 {[%clk 0:01:44.5]} 30. Rc3 {[%clk 0:01:47.9]}
30... fxe4 {[%clk 0:01:29.2]} 31. fxe4 {[%clk 0:01:48.8]} 31... Rf4 {[%clk
0:01:29.5]} 32. f3 {[%clk 0:01:48.5]} 32... Rh4 {[%clk 0:01:28.6]} 33. Rg2
{[%clk 0:01:49.4]} 33... Rxh5 {[%clk 0:01:28]} 34. Rc1 {[%clk 0:01:50.3]} 34...
Rh3 {[%clk 0:01:26.1]} 35. Rf1 {[%clk 0:01:47.2]} 35... Rf8 {[%clk 0:01:25.4]}
36. Ke3 {[%clk 0:01:45]} 36... Rf4 {[%clk 0:01:24.7]} 37. Ke2 {[%clk 0:01:44.1]}
37... g4 {[%clk 0:01:20.4]} 38. Rxg4 {[%clk 0:01:44.1]} 38... Rh2+ {[%clk
0:01:20]} 39. Ke3 {[%clk 0:01:41.1]} 39... Rxg4 {[%clk 0:01:18.5]} 40. fxg4
{[%clk 0:01:42]} 40... Rxa2 {[%clk 0:01:18.5]} 41. Rh1 {[%clk 0:01:42.9]} 41...
Rb2 {[%clk 0:01:15.8]} 42. Rxh6+ {[%clk 0:01:43.8]} 42... Kd7 {[%clk 0:01:14.3]}
43. Rh8 {[%clk 0:01:43.8]} 43... Rxb3+ {[%clk 0:01:13.8]} 44. Kf2 {[%clk
0:01:44]} 44... Rc3 {[%clk 0:01:06.4]} 45. g5 {[%clk 0:01:41.9]} 45... Ke6
{[%clk 0:01:04.8]} 46. Rf8 {[%clk 0:01:35.7]} 46... a2 {[%clk 0:01:02.7]} 47.
Ra8 {[%clk 0:01:35.6]} 47... Rxc4 {[%clk 0:01:02.9]} 48. Kf3 {[%clk 0:01:33.5]}
48... Rc2 {[%clk 0:01:02.6]} 49. Kg4 {[%clk 0:01:32.2]} 49... b5 {[%clk
0:01:01.7]} 50. Kh5 {[%clk 0:01:28.1]} 50... b4 {[%clk 0:01:01.8]} 51. Kg6
{[%clk 0:01:28.4]} 51... b3 {[%clk 0:01:01.6]} 52. Kg7 {[%clk 0:01:28.5]} 52...
Rc1 {[%clk 0:01:00.8]} 0-1

[Event "Early-Titled-Tuesday-Blitz-June-18-2024"]
[Site "Chess.com"]
[Date "2024.06.18"]
[Round "5"]
[White "ThetNaung291"]
[Black "Mikozovna"]
[Result "0-1"]
[WhiteElo "2450"]
[BlackElo "2627"]
[TimeControl "180+1"]
[EndTime "8:56:26 PDT"]
[Termination "Mikozovna won by resignation"]

1. d4 {[%clk 0:02:58.9]} 1... d6 {[%clk 0:02:58.7]} 2. Nf3 {[%clk 0:02:57.7]}
2... g6 {[%clk 0:02:58]} 3. e4 {[%clk 0:02:52.1]} 3... Nf6 {[%clk 0:02:47.3]} 4.
Bd3 {[%clk 0:02:48]} 4... Bg7 {[%clk 0:02:37.4]} 5. O-O {[%clk 0:02:44.6]} 5...
O-O {[%clk 0:02:37]} 6. h3 {[%clk 0:02:43]} 6... c5 {[%clk 0:02:36.9]} 7. c3
{[%clk 0:02:38.8]} 7... Nc6 {[%clk 0:02:36.6]} 8. d5 {[%clk 0:02:37.8]} 8... Nb8
{[%clk 0:02:33]} 9. Nbd2 {[%clk 0:02:35.3]} 9... e6 {[%clk 0:02:31.8]} 10. dxe6
{[%clk 0:02:32]} 10... Bxe6 {[%clk 0:02:30.8]} 11. Re1 {[%clk 0:02:27]} 11...
Nc6 {[%clk 0:02:30.6]} 12. Nc4 {[%clk 0:02:22.7]} 12... b5 {[%clk 0:02:27.5]}
13. Ncd2 {[%clk 0:02:19.6]} 13... c4 {[%clk 0:02:19.8]} 14. Bc2 {[%clk
0:02:18.9]} 14... d5 {[%clk 0:02:20]} 15. exd5 {[%clk 0:02:12.7]} 15... Bxd5
{[%clk 0:02:18.7]} 16. Nf1 {[%clk 0:02:05.7]} 16... Qc7 {[%clk 0:02:17.1]} 17.
Be3 {[%clk 0:01:58.1]} 17... Rad8 {[%clk 0:02:14.6]} 18. Nd4 {[%clk 0:01:55.1]}
18... a6 {[%clk 0:02:10.1]} 19. Qc1 {[%clk 0:01:48.6]} 19... Qb7 {[%clk
0:02:08.7]} 20. f3 {[%clk 0:01:47.7]} 20... Nh5 {[%clk 0:02:01.5]} 21. Nxc6
{[%clk 0:01:46.1]} 21... Bxc6 {[%clk 0:01:59.4]} 22. a3 {[%clk 0:01:40.9]} 22...
Bxf3 {[%clk 0:01:51.3]} 23. gxf3 {[%clk 0:01:38]} 23... Qxf3 {[%clk 0:01:51.2]}
24. Bd1 {[%clk 0:01:26.5]} 24... Qxh3 {[%clk 0:01:49.4]} 25. Bxh5 {[%clk
0:01:25.7]} 25... Qxh5 {[%clk 0:01:49.3]} 26. Qc2 {[%clk 0:01:22.3]} 26... Rfe8
{[%clk 0:01:46.1]} 27. Red1 {[%clk 0:01:15.2]} 27... Rxd1 {[%clk 0:01:30.5]} 28.
Qxd1 {[%clk 0:01:08.6]} 28... Qh3 {[%clk 0:01:26]} 29. Qd2 {[%clk 0:01:05.2]}
29... h5 {[%clk 0:01:20.6]} 30. Qf2 {[%clk 0:01:02.9]} 30... Re4 {[%clk
0:01:18.9]} 31. Nh2 {[%clk 0:00:52]} 31... Be5 {[%clk 0:01:17.7]} 32. Bd4 {[%clk
0:00:51.5]} 32... Bxh2+ {[%clk 0:01:15.5]} 33. Qxh2 {[%clk 0:00:51.4]} 33...
Rg4+ {[%clk 0:01:14.5]} 0-1

[Event "Early-Titled-Tuesday-Blitz-June-18-2024"]
[Site "Chess.com"]
[Date "2024.06.18"]
[Round "5"]
[White "Zampronha1971"]
[Black "Masterisback04"]
[Result "1-0"]
[WhiteElo "2394"]
[BlackElo "2110"]
[TimeControl "180+1"]
[EndTime "8:56:32 PDT"]
[Termination "Zampronha1971 won on time"]

1. e4 {[%clk 0:03:00.9]} 1... c5 {[%clk 0:02:59.9]} 2. Nf3 {[%clk 0:03:00.6]}
2... Nc6 {[%clk 0:03:00.2]} 3. d4 {[%clk 0:03:01.2]} 3... cxd4 {[%clk
0:03:00.7]} 4. Nxd4 {[%clk 0:03:01.8]} 4... e5 {[%clk 0:03:01.3]} 5. Nb5 {[%clk
0:03:01.1]} 5... d6 {[%clk 0:03:01.6]} 6. N1c3 {[%clk 0:03:00.8]} 6... a6 {[%clk
0:03:01.8]} 7. Na3 {[%clk 0:03:01.2]} 7... b5 {[%clk 0:03:02.4]} 8. Nd5 {[%clk
0:03:00.9]} 8... Nge7 {[%clk 0:03:03.1]} 9. c3 {[%clk 0:02:56.8]} 9... Nxd5
{[%clk 0:02:58.2]} 10. exd5 {[%clk 0:02:56.6]} 10... Ne7 {[%clk 0:02:56.6]} 11.
g3 {[%clk 0:02:54.6]} 11... Ng6 {[%clk 0:02:21.7]} 12. Bg2 {[%clk 0:02:52.4]}
12... Be7 {[%clk 0:02:21.8]} 13. O-O {[%clk 0:02:51.2]} 13... O-O {[%clk
0:02:21.9]} 14. Nc2 {[%clk 0:02:51.2]} 14... f5 {[%clk 0:02:20.7]} 15. a4 {[%clk
0:02:50.9]} 15... Rb8 {[%clk 0:02:17.8]} 16. axb5 {[%clk 0:02:50.7]} 16... axb5
{[%clk 0:02:18.7]} 17. Qe2 {[%clk 0:02:47.3]} 17... f4 {[%clk 0:02:15.5]} 18.
Nb4 {[%clk 0:02:38.6]} 18... Rb6 {[%clk 0:01:29.4]} 19. Ra8 {[%clk 0:02:25]}
19... Qc7 {[%clk 0:00:43.9]} 20. Nc6 {[%clk 0:02:23.1]} 20... Bg5 {[%clk
0:00:40.3]} 21. Qh5 {[%clk 0:02:05.1]} 21... Bh6 {[%clk 0:00:33.2]} 22. Bh3
{[%clk 0:02:00]} 22... Rxc6 {[%clk 0:00:04.3]} 23. dxc6 {[%clk 0:01:56.9]} 23...
Qxc6 {[%clk 0:00:03.9]} 24. Rxc8 {[%clk 0:01:40.8]} 24... Rxc8 {[%clk
0:00:03.7]} 25. Be6+ {[%clk 0:01:41.1]} 25... Kf8 {[%clk 0:00:03]} 26. Bxc8
{[%clk 0:01:42]} 26... Qxc8 {[%clk 0:00:02.9]} 27. Rd1 {[%clk 0:01:30.2]} 27...
Qe6 {[%clk 0:00:02.5]} 28. g4 {[%clk 0:01:25.6]} 1-0

[Event "Early-Titled-Tuesday-Blitz-June-18-2024"]
[Site "Chess.com"]
[Date "2024.06.18"]
[Round "5"]
[White "Murad_Ibrahimli"]
[Black "Feegus"]
[Result "1/2-1/2"]
[WhiteElo "2916"]
[BlackElo "2689"]
[TimeControl "180+1"]
[EndTime "8:56:36 PDT"]
[Termination "Game drawn by repetition"]

1. d4 {[%clk 0:02:59.2]} 1... d5 {[%clk 0:02:59.9]} 2. c4 {[%clk 0:03:00.1]}
2... e6 {[%clk 0:03:00.5]} 3. Nc3 {[%clk 0:02:58.9]} 3... h6 {[%clk 0:03:00.6]}
4. e4 {[%clk 0:02:55.7]} 4... dxe4 {[%clk 0:03:00]} 5. Nxe4 {[%clk 0:02:55.9]}
5... Bb4+ {[%clk 0:03:00.7]} 6. Nc3 {[%clk 0:02:55.6]} 6... c5 {[%clk
0:02:59.8]} 7. Nf3 {[%clk 0:02:47.5]} 7... Nc6 {[%clk 0:02:59.9]} 8. Be3 {[%clk
0:02:42.4]} 8... Nf6 {[%clk 0:02:55]} 9. Qd3 {[%clk 0:02:39.7]} 9... O-O {[%clk
0:02:33]} 10. O-O-O {[%clk 0:02:39.3]} 10... Qa5 {[%clk 0:02:19]} 11. d5 {[%clk
0:02:29.8]} 11... exd5 {[%clk 0:02:14.4]} 12. cxd5 {[%clk 0:02:30.7]} 12... Bxc3
{[%clk 0:02:14.6]} 13. dxc6 {[%clk 0:02:28.5]} 13... Bd4 {[%clk 0:01:57.5]} 14.
Nxd4 {[%clk 0:02:25.1]} 14... cxd4 {[%clk 0:01:58.4]} 15. Bxd4 {[%clk
0:02:25.6]} 15... Bf5 {[%clk 0:01:55.8]} 16. Qb5 {[%clk 0:02:13.6]} 16... Qxa2
{[%clk 0:01:54.5]} 17. Bc4 {[%clk 0:02:04.1]} 17... Qb1+ {[%clk 0:01:48.4]} 18.
Kd2 {[%clk 0:02:02.7]} 18... Qc2+ {[%clk 0:01:41]} 19. Ke1 {[%clk 0:01:59.7]}
19... Rae8+ {[%clk 0:01:05]} 20. Be3 {[%clk 0:01:55.3]} 20... Ng4 {[%clk
0:01:01.7]} 21. Rd2 {[%clk 0:01:20.5]} 21... Qc1+ {[%clk 0:00:55]} 22. Rd1
{[%clk 0:01:20.3]} 22... Rxe3+ {[%clk 0:00:31.1]} 23. fxe3 {[%clk 0:01:21.2]}
23... Qxe3+ {[%clk 0:00:31.7]} 24. Be2 {[%clk 0:01:21.2]} 24... Qf2+ {[%clk
0:00:16.8]} 25. Kd2 {[%clk 0:01:20.6]} 25... Qe3+ {[%clk 0:00:10.5]} 26. Ke1
{[%clk 0:01:20.5]} 26... Qf2+ {[%clk 0:00:05.4]} 27. Kd2 {[%clk 0:01:20.9]}
27... Qe3+ {[%clk 0:00:05.7]} 28. Ke1 {[%clk 0:01:21.5]} 1/2-1/2

[Event "Early-Titled-Tuesday-Blitz-June-18-2024"]
[Site "Chess.com"]
[Date "2024.06.18"]
[Round "5"]
[White "GoltsevDmitry2000"]
[Black "GHANDEEVAM2003"]
[Result "1/2-1/2"]
[WhiteElo "2719"]
[BlackElo "2989"]
[TimeControl "180+1"]
[EndTime "8:56:39 PDT"]
[Termination "Game drawn by repetition"]

1. e4 {[%clk 0:02:58.3]} 1... d6 {[%clk 0:02:56.9]} 2. Nf3 {[%clk 0:02:58.2]}
2... g6 {[%clk 0:02:55.6]} 3. d4 {[%clk 0:02:57.2]} 3... Bg7 {[%clk 0:02:56.2]}
4. c3 {[%clk 0:02:57.9]} 4... Nc6 {[%clk 0:02:55.8]} 5. Bc4 {[%clk 0:02:57.6]}
5... e5 {[%clk 0:02:55.4]} 6. dxe5 {[%clk 0:02:57.7]} 6... dxe5 {[%clk
0:02:54.5]} 7. Qxd8+ {[%clk 0:02:57.3]} 7... Nxd8 {[%clk 0:02:55.4]} 8. Be3
{[%clk 0:02:54.5]} 8... Nf6 {[%clk 0:02:54.2]} 9. Nxe5 {[%clk 0:02:54.1]} 9...
Nxe4 {[%clk 0:02:53.3]} 10. Nf3 {[%clk 0:02:54]} 10... Nd6 {[%clk 0:02:49.5]}
11. Bb3 {[%clk 0:02:53.7]} 11... Be6 {[%clk 0:02:47]} 12. Nbd2 {[%clk
0:02:49.1]} 12... Nf5 {[%clk 0:02:44]} 13. Bf4 {[%clk 0:02:39.6]} 13... Bxb3
{[%clk 0:02:43]} 14. Nxb3 {[%clk 0:02:39]} 14... Ne6 {[%clk 0:02:43.9]} 15. Be5
{[%clk 0:02:37.5]} 15... f6 {[%clk 0:02:36]} 16. Bg3 {[%clk 0:02:37]} 16... h5
{[%clk 0:02:27]} 17. O-O-O {[%clk 0:02:08.5]} 17... h4 {[%clk 0:02:18.5]} 18.
Rhe1 {[%clk 0:02:07.2]} 18... hxg3 {[%clk 0:02:18.5]} 19. Rxe6+ {[%clk
0:02:06.6]} 19... Kf7 {[%clk 0:02:19.2]} 20. Rd7+ {[%clk 0:02:06.3]} 20... Kg8
{[%clk 0:02:11.5]} 21. fxg3 {[%clk 0:02:03.5]} 21... Rh7 {[%clk 0:02:05.3]} 22.
Kb1 {[%clk 0:01:53]} 22... g5 {[%clk 0:01:54.9]} 23. Rxc7 {[%clk 0:01:38.7]}
23... g4 {[%clk 0:01:52.3]} 24. Nfd4 {[%clk 0:01:38.1]} 24... Nxd4 {[%clk
0:01:44.4]} 25. Nxd4 {[%clk 0:01:39]} 25... Rxh2 {[%clk 0:01:44.5]} 26. Nf5
{[%clk 0:01:32]} 26... Bf8 {[%clk 0:01:44.4]} 27. Rxf6 {[%clk 0:01:26.2]} 27...
Re8 {[%clk 0:01:44.2]} 28. a3 {[%clk 0:01:13.4]} 28... b5 {[%clk 0:01:31.7]} 29.
Rg6+ {[%clk 0:00:38.9]} 29... Kh8 {[%clk 0:01:31.5]} 30. Rxg4 {[%clk 0:00:36.1]}
30... Rxg2 {[%clk 0:01:27.8]} 31. Nd4 {[%clk 0:00:30.9]} 31... Bxa3 {[%clk
0:01:22]} 32. Rh4+ {[%clk 0:00:11]} 32... Kg8 {[%clk 0:01:21.9]} 33. Rg4+ {[%clk
0:00:11.2]} 33... Kh8 {[%clk 0:01:22.5]} 34. Rh4+ {[%clk 0:00:11.3]} 34... Kg8
{[%clk 0:01:23.1]} 35. Rg4+ {[%clk 0:00:11.9]} 35... Kh8 {[%clk 0:01:23.8]}
1/2-1/2